Cogmind - Beta 10 X2 @@@ ROGUE MODE // 2020.08.09 @ 17:16:38 Player: Mr.Manatee Result: Destroyed by D-53 Grenadier with Mini Grenade Launcher Performance ------------- Evolutions (0) 0 Regions Visited (2) 400 Robots Destroyed (18) 90 Value Destroyed (247) 247 Prototype IDs (4) 80 Alien Tech Used (0) 0 Bonus (0) 0 TOTAL SCORE: 817 Bonus ------- None Cogmind --------- Core Integrity 0/250 Matter 279/300 Energy 93/100 System Corruption 10% Temperature Cool (0) Movement Treading (180) Ox1 Location -10/Mines Parts ------- > --- POWER (1) -------- (None) > --- PROPULSION (2) --- Light Treads > --- UTILITY (2) ------ Large Storage Unit Large Storage Unit > --- WEAPON (2) ------- (None) > --- INVENTORY (16) --- Ion Engine Ion Engine Ion Engine Light Ion Engine Heat Sink Hacking Suite Thief Drone Bay Assault Rifle Assault Rifle Assault Rifle Assault Rifle Assault Rifle Peak State ------------ > --- POWER ------------ Light Nuclear Core > --- PROPULSION ------- Light Treads Light Treads > --- UTILITY ---------- Large Storage Unit Large Storage Unit > --- WEAPON ----------- Small Laser Assault Rifle > --- INVENTORY -------- Ion Engine Ion Engine Light Ion Engine Light Treads Light Treads Light Treads Heat Sink Hacking Suite Thief Drone Bay Assault Rifle Assault Rifle Assault Rifle Assault Rifle Assault Rifle Assault Rifle [Rating: 11] Favorites ----------- Power Ion Engine Engine Ion Engine Power Core Light Nuclear Core Propulsion Light Treads Treads Light Treads Leg Aluminum Leg Utility Large Storage Unit Storage Large Storage Unit Weapon Small Laser Energy Gun Small Laser Ballistic Gun Assault Rifle Build | -11 -10 -10 ------- Run | Scr Mat Min Slots Evolved . | . . . Power . | . . . Propulsion . | . . . Utility . | . . . Weapon . | . . . Parts Attached 18 | 6 6 6 Power 3 | 1 1 1 Engine 2 | 1 1 . Core 1 | . . 1 Reactor . | . . . Propulsion 7 | 2 2 3 Treads 5 | . 2 3 Leg 2 | 2 . . Wheel . | . . . Hover . | . . . Flight . | . . . Utility 3 | 1 2 . Device . | . . . Storage 3 | 1 2 . Processor . | . . . Hackware . | . . . Protection . | . . . Artifact . | . . . Weapon 5 | 2 1 2 Energy Gun 3 | 2 1 . Energy Cannon . | . . . Ballistic Gun 2 | . . 2 Ballistic Cannon . | . . . Launcher . | . . . Special Weapon . | . . . Impact Weapon . | . . . Slashing Weapon . | . . . Piercing Weapon . | . . . Special Melee Weapon . | . . . Unidentified Prototypes . | . . . Parts Lost 10 | . 1 9 Power 1 | . . 1 Propulsion 4 | . . 4 Utility . | . . . Weapon 5 | . 1 4 Highest Loss Streak 8 | . 1 8 Average Slot Usage (%) 98 | . 98 94 Engine 12 | . 14 6 Core 1 | . . 5 Treads 26 | . 26 27 Leg 1 | . 1 . Storage 27 | . 27 28 Energy Gun 25 | . 27 18 Ballistic Gun 1 | . . 6 Naked Turns . | . . . Heaviest Build 40 | 12 40 40 Greatest Support 40 | 20 40 40 Greatest Overweight (x) 3 | 3 1 1 Average Overweight (x) . | . . . Largest Inventory Capacity 16 | 6 16 16 Average Capacity 14 | 5 15 16 Most Carried 16 | 5 16 16 Average Carried 12 | 2 12 14 Final Capacity 16 | 6 16 16 Final Carried 14 | 4 14 12 Class Distribution -------------------- 100% | Mutant Dominant Class ---------------- Mutant | -10/Materials Mutant | -10/Mines Resources | -11 -10 -10 ----------- Run | Scr Mat Min Matter Collected 338 | 260 52 26 Remotely . | . . . Salvage Created 537 | 87 340 110 Parts 40 | 2 31 7 Haulers Intercepted 2 | . 2 . Recyclers Shooed . | . . . Parts Field Recycled . | . . . Retrieved Matter . | . . . Parts Self-Destructed . | . . . Prevented . | . . . Kills | -11 -10 -10 ------- Run | Scr Mat Min Combat Hostiles Destroyed 13 | . 10 3 Guns 13 | . 10 3 Classes Destroyed 6 | 1 4 1 Hauler 2 | . 2 . Recycler 1 | 1 . . Operator 2 | . 2 . Swarmer 9 | . 9 . Grunt 3 | . 1 2 Assembled 1 | . . 1 Best Kill Streak 3 | 1 3 2 Combat Bots Only 3 | . 3 2 Max Kills in Single Turn 1 | 1 1 1 Gunslinging . | . . . Exploded . | . . . Melee . | . . . Uniques/NPCs Destroyed . | . . . Combat | -11 -10 -10 -------- Run | Scr Mat Min Damage Taken 1428 | . 260 1168 Core 259 | . 44 215 Absorbed by Shields . | . . . Core Remaining (%) 100 | 100 . . Volleys Fired 52 | 1 40 11 Largest 2 | 1 2 2 Hottest 80 | 40 80 80 Shots Fired 95 | 1 72 22 Gun 95 | 1 72 22 Cannon . | . . . Launcher . | . . . Special . | . . . Kinetic 9 | . . 9 Thermal 50 | . 37 13 Explosive . | . . . Electromagnetic 36 | 1 35 . Robot Hit Streak 11 | 1 8 11 Robot Miss Streak 3 | . 2 3 Penetration Max . | . . . Secondary Targets . | . . . Shots Hit Robots 59 | 1 43 15 Core Hits 27 | 1 17 9 Critical Hits . | . . . Critical Kills . | . . . Critical Parts Destroyed . | . . . Melee Attacks . | . . . Impact . | . . . Slashing . | . . . Piercing . | . . . Sneak Attacks . | . . . Combat Hostiles . | . . . Follow-up Attacks . | . . . Damage Inflicted 746 | 15 544 187 Guns 695 | 15 493 187 Cannons . | . . . Explosions 51 | . 51 . Melee . | . . . Ramming . | . . . Kinetic 72 | . . 72 Thermal 337 | . 222 115 Explosive . | . . . Electromagnetic 337 | 15 322 . Impact . | . . . Slashing . | . . . Piercing . | . . . Highest Corruption 10 | . 2 10 Average Corruption 2 | . 2 2 Corruption Purged . | . . . Effects 5 | . 3 2 Message Errors 3 | . 2 1 Data Loss (minor) 1 | . . 1 Targeting Errors 1 | . 1 . Overload Shots . | . . . Overflow Damage . | . . . Projectiles . | . . . Explosions . | . . . Melee . | . . . Knockbacks . | . . . Impact . | . . . Kinetic . | . . . Secondary . | . . . Self-Inflicted Damage 20 | . 20 . Shots 1 | . 1 . Rammed . | . . . Targets Rammed . | . . . Kicked . | . . . Crushed . | . . . Highest Temperature 106 | . 106 61 Average Temperature 31 | . 34 24 Received Heat Transfer 252 | . 6 246 Siege Activations . | . . . Robots Corrupted . | . . . Combat Hostiles . | . . . Parts Fried 2 | . 2 . Impact Corruptions . | . . . Robots Melted . | . . . Combat Hostiles . | . . . Parts Melted . | . . . Heat Transferred 675 | . 425 250 Parts Sabotaged . | . . . Parts Stolen . | . . . Parts Stripped . | . . . Power Chain Reactions 2 | . 2 . Missiles Intercepted . | . . . Alert | -11 -10 -10 ------- Run | Scr Mat Min Peak Influence 233 | 5 233 130 Average Influence 92 | . 98 105 Maximum Alert Level 1 | . 1 . Low Security (%) 97 | 100 97 100 Level 1 2 | . 2 . Level 2 . | . . . Level 3 . | . . . Level 4 . | . . . Level 5 . | . . . High Security . | . . . Max Security . | . . . Squads Dispatched 3 | . 3 . Investigation 1 | . 1 . Extermination . | . . . Reinforcement 2 | . 2 . Assault . | . . . Garrison . | . . . Intercept . | . . . Construction Impeded . | . . . Haulers Reinforced . | . . . Stealth | -11 -10 -10 --------- Run | Scr Mat Min Distress Signals 1 | . . 1 Communications Jammed . | . . . Distress Signals . | . . . Times Spotted 43 | . 24 19 Peak Tracking Total 13 | . 6 13 Tactical Retreats 2 | . 1 1 Traps | -11 -10 -10 ------- Run | Scr Mat Min Traps Triggered 1 | . 1 . Indirectly . | . . . Trap Hack Attempts . | . . . Triggered . | . . . Disarmed . | . . . Reprogrammed . | . . . Reused . | . . . Traps Extracted . | . . . Installed . | . . . Triggered . | . . . Machines | -11 -10 -10 ---------- Run | Scr Mat Min Machines Disabled . | . . . Max in Single Turn . | . . . Machines Sabotaged . | . . . Garrisons Compromised . | . . . Overloaded Fab Kills . | . . . Fab Network Shutdowns . | . . . Hacking | -11 -10 -10 --------- Run | Scr Mat Min Machines Accessed 7 | . 6 1 Terminals 6 | . 6 . Fabricators . | . . . Repair Stations . | . . . Recycling Units . | . . . Scanalyzers . | . . . Garrison Access . | . . . Total Hacks 15 | . 14 1 Successful 7 | . 6 1 Failed 8 | . 8 . Catastrophic 2 | . 2 . Database Lockouts . | . . . Manual 8 | . 8 . Terminals 14 | . 14 . Fabricators . | . . . Repair Stations . | . . . Recycling Units . | . . . Scanalyzers . | . . . Garrison Access . | . . . Terminal Hacks 7 | . 6 1 Robot Analysis 2 | . 2 . Prototype ID Bank 2 | . 2 . Open Door 1 | . . 1 Locate Traps 1 | . 1 . Recall Reinforcements 1 | . 1 . Fabricator Hacks . | . . . Repair Station Hacks . | . . . Recycling Unit Hacks . | . . . Scanalyzer . | . . . Garrison Access Hacks . | . . . Unauthorized Hacks . | . . . Terminals . | . . . Fabricators . | . . . Repair Stations . | . . . Recycling Units . | . . . Scanalyzers . | . . . Garrison Access . | . . . Data Cores Recovered . | . . . Used . | . . . Hacking Detections 6 | . 6 . Full Trace Events 1 | . 1 . Feedback Events . | . . . Feedback Blocked . | . . . Robot Schematics Acquired . | . . . Robots Built . | . . . Matter . | . . . Time . | . . . Total Robot Build Rating . | . . . Part Schematics Acquired . | . . . Parts Built . | . . . Matter . | . . . Time . | . . . Total Part Build Rating . | . . . Parts Repaired . | . . . Time . | . . . Parts Recycled . | . . . Recycled Matter . | . . . Retrieved Matter . | . . . Retrieved Components . | . . . Parts Scanalyzed . | . . . Part Schematics Acquired . | . . . Parts Damaged . | . . . Bothacking | -11 -10 -10 ------------ Run | Scr Mat Min Used RIF Installer . | . . . Robots Hacked . | . . . Non-combat . | . . . Combat . | . . . Robot Hacks Applied . | . . . Relay Couplers Released . | . . . Robots Rewired . | . . . Allies Hacked . | . . . Hacks Repelled . | . . . Allies | -11 -10 -10 -------- Run | Scr Mat Min Total Allies . | . . . Largest Group . | . . . Highest-Rated Group . | . . . Highest-Rated Ally . | . . . Total Orders . | . . . Ally Attacks . | . . . Total Damage . | . . . Kills . | . . . Allies Corrupted . | . . . Allies Melted . | . . . Intel | -11 -10 -10 ------- Run | Scr Mat Min Robot Analysis Total 2 | . 2 . Derelict Logs Recovered . | . . . Drone Launches . | . . . Drone Recoveries . | . . . Exploration | -11 -10 -10 ------------- Run | Scr Mat Min Turns Passed 994 | 76 731 187 Spaces Moved 508 | 51 371 86 Core 9 | 9 . . Treads 423 | . 337 86 Legs 76 | 42 34 . Wheels . | . . . Hover . | . . . Flight . | . . . Fastest Speed 50 | 50 120 160 Average Speed 153 | 119 156 160 Slowest Speed 200 | 200 160 180 Overloaded Moves . | . . . Propulsion Burnouts . | . . . Robots Hopped . | . . . Cave-ins Triggered . | . . . Exploration Rate (%) 33 | 4 69 27 Regions Visited 2 Branch Regions 1 Pre-discovered Areas . | . . . Known Exits Taken . | . . . Unknown Exits Taken 2 | 1 1 . Scrap Searched . | . . . Spaces Dug . | . . . Terrain Destroyed 3 | . 3 . Melee . | . . . Projectile . | . . . AOE 3 | . 3 . Actions | -11 -10 -10 --------- Run | Scr Mat Min Total 624 | 62 450 112 Wait 23 | . 17 6 Move 506 | 50 370 86 Hop . | . . . Pick Up 20 | 5 13 2 Fast Attach 7 | 5 1 1 Attach 7 | 1 1 5 Detach 1 | . . 1 Swap 4 | . 4 . Drop 4 | . 4 . Fire 52 | 1 40 11 Melee . | . . . Ram . | . . . Kick . | . . . Crush . | . . . Escape Stasis . | . . . Rewire . | . . . Trap . | . . . Miscellaneous . | . . . Route ------- -11/Scrapyard -10/Materials (discovered 4 exits: [*Mat x2] / *Min x2) -10/Mines History --------- Turn | Location | Event 18 | -11/Scrapyard | Discovered new exit (range 16) 77 | -11/Scrapyard | Entered Materials 211 | -10/Materials | Discovered new exit (range 13) 303 | -10/Materials | Discovered new exit (range 13) 307 | -10/Materials | Build established: Mutant 695 | -10/Materials | Discovered new exit (range 8) 799 | -10/Materials | Discovered new exit (range 7) 808 | -10/Materials | Entered Mines 813 | -10/Mines | Found the Drone Emporium 817 | -10/Mines | Met a Derelict bent on vengeance 820 | -10/Mines | Found Prototype Device 926 | -10/Mines | Assembled infested the area 931 | -10/Mines | Assisted by a Guerilla fighting off Assembled 976 | -10/Mines | Core integrity fell below 50% 988 | -10/Mines | System corruption reached 10% 992 | -10/Mines | Core integrity fell below 20% 995 | -10/Mines | Destroyed by D-53 Grenadier with Mini Grenade Launcher Last Messages --------------- 00978_ Lgt. Nuclear Core destroyed. 00978_ System corrupted by crushing effect (+3). 00978_ System corrupted by crushing effect (+2). 00987_ Lgt. Treads destroyed. 00987_ System corrupted by crushing effect (+3). 00988_ U-05 Engineer lays Concrete. 00991_ Lgt. Treads destroyed. 00991_ as-14268 destroyed. 00991_ as-94346 destroyed. 00991_ U-05 Engineer lays Concrete. 00991_ as-00664 destroyed. 00991_ as-46086 destroyed. 00992_ U-05 Engineer lays Concrete. 00993_ as-17983 destroyed. 00993_ as-00240 destroyed. 00993_ as-45618 destroyed. 00993_ as-86914 destroyed. 00993_ K-01 Serf collects debris. 00993_ as-41754 destroyed. 00994_ U-05 Engineer lays Concrete. Map ----- +----------------------------------------------------+ | ?????????????????????????????????????????????????? | | ?????????????????????????????????????????????????? | | ?????????????????????????????????????????????????? | | ?????????????????????????????????????????????????? | | ?????????????????????????????????????????????????? | | ?????????????????????????????????????????????????? | | ?????????????????????????????????????######??????? | | ????????????????????????????????????##""""##?????? | | ????????????????????????????????????#" "#?????? | | ??????????????????????? ???????????#" "#?????? | | ??????????????????????? ???????????## $#####??? | | ??????????????????????? ???????????### ### ##?? | | ??????????????????????? ???????????# X #?? | | ??????????????????????? ???????????# #?? | | ??????????????????????? ???????????# ##?? | | ???????????????????????? ???????????# ##??? | | ???????????????????????? ###????????## #???? | | ???????????????????????? #?????????# #???? | | ???????????????????????? ????????## #???? | | ???????????????????????? ?????????# #####???? | | ???????????????????????? ?????????# ##???????? | | ????????????????????????# ?????????# #####????? | | ????????????????????????# ###???????# #????? | | ??????????????????????### ##??????## #### #????? | | ???????????????????#### ###?????###??# #????? | | ???????????????????# @ ##?????????# ###### | | ???????????????????# ###???????# # | | ???????????????????# #####???# # | | ??????????????????# u #???# # """ | | ??????????????????## d = k#####!# """ | | ???????????????????# # d =% % % """ | | ???????????????????## a #### r *#########% | | ????????????????????# #??## ##???????# | | ?????????????????#### ##??### #????????# | | ?????????????????#% #????????## ## | | ????????????????# % #?????????# #? | | ???????????????# #########?????????# #? | | ??????????????# % ##????????????????? ? | | ????????????? ##?????????????????? | | ???????????| ]* #??????????????????? | | ????????? * =%% ## ## ##??????????????????? | | ???????? ###=% ?# #####????????????????????"" | | ???????? ???## ?$ #????????????????????????"" | | ??????? ?????# ??##??????????????????????????? | | ??????????????# ??????????????????????????????? | | ??????????????#???????????????????????????????? | | ?????????????????????????????????????????????????? | | ?????????????????????????????????????????????????? | | ?????????????????????????????????????????????????? | | ?????????????????????????????????????????????????? | +----------------------------------------------------+ Best States ------------- Heat Dissipation 25 Energy Generation 14 Energy Capacity 250 Matter Stores 300 Matter Capacity 300 Sight Range 16 Terrain Scan Density 10 Evasion (%) 40 Recoil Reduction 2 Item Schematics ----------------- None Robot Schematics ------------------ None Fabricated ------------ Nothing Alien Tech Used ----------------- None Achievements -------------- None Challenges ------------ None Game ------ Seed HardenedPropulsionGreatsword Manual? 0 Play Time 00:09:44 Cumulative 100.1 hours Start 2020.08.09 @ 17:09:01 End 2020.08.09 @ 17:16:38 Sessions 1 Manual Loads 0 Difficulty Rogue Special Mode None Game No. 120 Rogue 120 Adventurer 0 Explorer 0 Win Type - Total 0 Types 0/0/0/0/0/0/0 Lore% 56 Gallery% 67 Achievement% 48 Wizard Run 0 Options --------- ASCII 0 Keyboard 1 Movement Numpad Keybinds 0 Fullscreen 2 Font 18/SmallcapsGlow Map View 76x50 Tactical HUD 1 Map Filters NONE Filters NONE Steam 1 RUN: b8ecea00-0a42-400a-ae05-518b95318b76